bitfinex/quotes_BTCUSD_20220201
["timestamp","ask_amount","ask_price","bid_price","bid_amount"]
[1643727535462,0.06501529,38459.0,38457.0,0.00124261]
[1643727535861,0.06500307,38462.0,38458.0,0.350011]
[1643727536062,0.06500307,38462.0,38457.0,0.00124261]
[1643727536463,0.06500307,38462.0,38457.0,0.21456867]
[1643727536667,0.06500307,38462.0,38458.0,0.22339686]
[1643727536864,0.06500307,38462.0,38458.0,0.00124258]
[1643727537267,0.06499667,38466.0,38459.0,0.350011]
[1643727537465,0.06499667,38466.0,38460.0,0.23485306]
[1643727537665,0.06499667,38466.0,38461.0,0.155899]
[1643727537864,0.06499667,38466.0,38462.0,0.064994]
[1643727538066,0.06499667,38466.0,38463.0,0.34997]
[1643727538307,0.06499667,38466.0,38462.0,0.064994]
[1643727539210,0.00152898,38467.0,38462.0,0.064994]
[1643727539606,0.00152898,38467.0,38466.0,0.65]
[1643727539806,0.00152898,38467.0,38466.0,0.155835]
[1643727540009,0.0001,38469.0,38466.0,0.15]
[1643727540208,0.00152899,38468.0,38467.0,0.155831]
[1643727540606,0.00152899,38468.0,38463.0,0.03786699]
[1643727540807,0.00152899,38468.0,38467.0,1.28476044]
[1643727541008,0.00152899,38468.0,38467.0,0.43587158]
[1643727541209,0.0001,38469.0,38468.0,0.03722237]
[1643727541409,0.00162897,38469.0,38468.0,0.38719737]
[1643727541713,0.00162897,38469.0,38468.0,0.48719737]
[1643727541956,0.00162897,38469.0,38468.0,0.58109771]
[1643727542159,0.00162897,38469.0,38468.0,0.499975]
[1643727542360,0.0001,38469.0,38468.0,0.499975]
[1643727542955,0.0001,38469.0,38468.0,0.724445]
[1643727543157,0.0001,38469.0,38468.0,0.90844447]
[1643727543458,0.0001,38469.0,38468.0,2.01259066]
[1643727543656,0.0001,38469.0,38468.0,2.22539488]
[1643727543857,0.00611489,38476.0,38471.0,0.064967]
[1643727544057,0.00611489,38476.0,38472.0,0.50965694]
[1643727544263,0.00611489,38476.0,38473.0,0.1]
[1643727544459,0.06496546,38484.0,38476.0,1.2]
[1643727544659,0.0105,38489.0,38477.0,0.380242]
[1643727544860,0.0105,38489.0,38488.0,0.26815401]
[1643727545058,0.01,38489.0,38488.0,0.350011]
[1643727545260,0.01,38489.0,38484.0,0.12915827]
[1643727545464,0.0105,38489.0,38485.0,0.574481]
[1643727545720,0.01,38489.0,38486.0,0.18573554]
[1643727545910,0.01,38499.0,38493.0,0.29716759]
[1643727546111,0.01,38499.0,38494.0,0.349925]
[1643727546313,0.000194,38507.0,38496.0,1.2]
[1643727546513,0.005194,38509.0,38506.0,0.08149539]
[1643727546713,0.005194,38509.0,38507.0,0.399797]
[1643727547016,0.01,38519.0,38507.0,0.399797]
[1643727547017,0.01,38519.0,38508.0,1.75542392]
[1643727547216,0.0027996,38522.0,38510.0,1.2]
[1643727547516,0.37361959,38533.0,38510.0,1.2]
[1643727547517,0.25581796,38536.0,38524.0,0.1]
[1643727547817,0.01,38549.0,38531.0,0.4]
[1643727548013,0.01,38549.0,38534.0,0.17409]
[1643727548213,0.01,38549.0,38535.0,0.155278]
[1643727548413,0.39466961,38547.0,38536.0,0.0479]
[1643727548613,0.00153562,38543.0,38537.0,0.349993]
[1643727548813,0.00153562,38543.0,38532.0,0.1]
[1643727549012,0.0908868,38542.0,38533.0,0.5]
[1643727549460,0.00153562,38543.0,38533.0,0.5]
[1643727549461,0.3401212,38540.0,38533.0,0.5]
[1643727549665,0.29335998,38541.0,38534.0,0.350011]
[1643727549860,0.00153568,38539.0,38534.0,0.350011]
[1643727550060,0.00153568,38539.0,38535.0,0.5]
[1643727550262,0.00153568,38539.0,38536.0,0.154786]
[1643727550463,0.00153568,38539.0,38535.0,0.5]
[1643727550861,0.29335998,38541.0,38536.0,0.350011]
[1643727551063,0.29335998,38541.0,38537.0,0.5]
[1643727551262,0.350011,38540.0,38537.0,0.5]
[1643727551566,1.2,38538.0,38522.0,0.064887]
[1643727551765,1.2,38538.0,38518.0,0.20052]
[1643727551766,0.1,38537.0,38518.0,0.20052]
[1643727551962,1.25,38538.0,38519.0,0.22447]
[1643727551963,0.36621362,38527.0,38519.0,0.22447]
[1643727552161,0.41621362,38527.0,38519.0,0.22447]
[1643727552364,0.36865504,38527.0,38516.0,0.22447]
[1643727552561,0.28658627,38519.0,38513.0,0.22447]
[1643727552763,0.00520199,38540.0,38514.0,0.350011]
[1643727552963,0.129822,38534.0,38515.0,0.22447]
[1643727553236,0.129822,38534.0,38516.0,0.350011]
[1643727553237,0.07238841,38530.0,38516.0,0.350011]
[1643727553435,0.07238841,38530.0,38517.0,0.30798208]
[1643727553436,0.17264737,38530.0,38517.0,0.30798208]
[1643727553635,0.29348648,38522.0,38518.0,0.155045]
[1643727554041,0.29348648,38522.0,38517.0,0.350004]
[1643727554235,0.34348648,38522.0,38518.0,0.1]
[1643727554436,0.34348648,38522.0,38519.0,0.155045]
[1643727554638,0.00148238,38521.0,38516.0,0.09969]
[1643727554838,0.25286138,38519.0,38510.0,0.20469838]
[1643727555041,0.25286138,38519.0,38508.0,0.20082]
[1643727555042,0.0479,38518.0,38508.0,0.20082]
[1643727555236,0.28368429,38512.0,38508.0,0.20082]
[1643727555440,0.28368429,38512.0,38508.0,0.00781955]
[1643727555441,0.33158429,38512.0,38508.0,0.00781955]
[1643727555836,0.33292093,38512.0,38508.0,0.00781955]
[1643727556035,0.33292093,38512.0,38503.0,0.07511024]
[1643727556236,0.33937294,38512.0,38497.0,0.22408125]
[1643727556437,0.38141355,38509.0,38497.0,0.22408125]
[1643727556635,0.0479,38508.0,38497.0,0.0011]
[1643727557066,0.350011,38507.0,38497.0,0.0011]
[1643727557267,0.0979,38507.0,38501.0,0.08124647]
[1643727557464,0.0479,38507.0,38502.0,0.21879185]
[1643727557675,0.00133668,38509.0,38506.0,0.353111]
[1643727557866,0.00133668,38509.0,38507.0,0.03938846]
[1643727558065,0.38125449,38522.0,38508.0,1.4604827]
[1643727558367,0.00504413,38515.0,38509.0,0.1]
[1643727558566,0.00504413,38515.0,38510.0,0.349972]
[1643727559164,0.00504413,38515.0,38511.0,0.1]
[1643727559470,0.00126116,38514.0,38512.0,0.57144304]
[1643727559664,0.00126116,38514.0,38513.0,0.21647295]
[1643727559866,0.00126116,38514.0,38513.0,0.37165095]
[1643727560066,0.00126116,38514.0,38513.0,0.155178]
[1643727560271,0.06618796,38514.0,38509.0,0.34998]
[1643727560467,0.06618796,38514.0,38510.0,0.1]
[1643727560468,0.0649268,38514.0,38510.0,0.1]
[1643727560710,0.0649268,38514.0,38507.0,0.155202]
[1643727560711,0.0649268,38514.0,38511.0,0.349964]
[1643727560912,0.0649268,38514.0,38507.0,0.1]
[1643727560913,0.12482444,38512.0,38507.0,0.1]
[1643727561114,0.12482444,38512.0,38508.0,0.450011]
[1643727561316,0.00128186,38515.0,38509.0,0.1]
[1643727561522,0.00512667,38521.0,38509.0,0.1]
[1643727561523,0.00512667,38521.0,38511.0,1.23833759]
[1643727561718,0.42,38534.0,38515.0,0.4]
[1643727561920,0.2004,38536.0,38528.0,0.25238517]
[1643727562118,0.17546972,38540.0,38528.0,0.25238517]
[1643727562317,0.15500986,38537.0,38528.0,0.34691197]
[1643727562516,0.15500986,38537.0,38529.0,0.350011]
[1643727562824,0.15500986,38537.0,38522.0,0.1]
[1643727563218,0.0479,38536.0,38517.0,0.1]
[1643727563417,0.0479,38536.0,38518.0,0.57725404]
[1643727563617,0.42,38541.0,38527.0,0.21317179]
[1643727563618,0.17546972,38541.0,38527.0,0.21317179]
[1643727563816,0.59546972,38541.0,38528.0,0.154981]
[1643727564019,0.42,38541.0,38525.0,0.04202875]
[1643727564218,0.415,38541.0,38524.0,0.05]
[1643727564471,0.00090049,38536.0,38525.0,0.22724304]
[1643727564664,0.01,38549.0,38524.0,0.05]
[1643727564665,0.22724304,38546.0,38527.0,0.03684033]
[1643727564864,0.17608052,38550.0,38526.0,0.21955332]
[1643727564865,0.06489372,38538.0,38526.0,0.21955332]
[1643727565066,0.06489372,38538.0,38527.0,0.450011]
[1643727565263,0.06489372,38538.0,38527.0,0.350011]
[1643727565468,0.06489372,38538.0,38522.0,0.1]
[1643727565469,0.07194989,38538.0,38522.0,0.1]
[1643727565665,0.22724304,38537.0,38522.0,0.15]
[1643727565868,0.06490203,38532.0,38517.0,0.1]
[1643727566066,0.06490203,38532.0,38518.0,0.350011]
[1643727566265,0.244487,38528.0,38518.0,0.4259478]
[1643727566465,0.244487,38528.0,38518.0,0.5256578]
[1643727566466,0.43405419,38528.0,38518.0,0.5256578]
[1643727566665,0.18956719,38528.0,38518.0,0.449721]
[1643727566966,0.11281235,38527.0,38518.0,0.09971]
[1643727567170,0.350011,38526.0,38518.0,0.09971]
[1643727567366,0.0479,38525.0,38518.0,0.09971]
[1643727567566,0.0479,38525.0,38524.0,0.09756096]
[1643727567866,0.0479,38525.0,38518.0,0.09971]
[1643727567867,0.34802212,38524.0,38518.0,0.09971]
[1643727568069,0.05,38524.0,38518.0,0.09971]
[1643727568322,0.05,38524.0,38519.0,0.350011]
[1643727568522,0.05,38525.0,38519.0,0.39736535]
[1643727568725,0.22982246,38531.0,38518.0,0.09971]
[1643727568921,0.0479,38530.0,38518.0,0.09971]
[1643727569123,0.39316663,38524.0,38520.0,0.00130765]
[1643727569326,0.91106663,38524.0,38520.0,0.00130765]
[1643727569523,0.350011,38523.0,38520.0,0.00130765]
[1643727569724,0.48923794,38522.0,38520.0,0.00130765]
[1643727569923,0.0479,38521.0,38520.0,0.00130765]
[1643727570125,0.0479,38521.0,38510.0,0.22724304]
[1643727570327,0.0479,38521.0,38519.0,0.00130769]
[1643727570929,0.2004,38537.0,38520.0,1.29669811]
[1643727571126,0.42,38530.0,38521.0,0.22724304]
[1643727571327,0.2004,38537.0,38522.0,0.44166102]
[1643727571528,0.54997415,38548.0,38528.0,0.10453632]
[1643727571529,0.00154477,38544.0,38528.0,0.10453632]
[1643727571827,0.00154477,38544.0,38529.0,0.51711615]
[1643727571828,0.2597434,38539.0,38529.0,0.51711615]
[1643727572072,0.00154477,38544.0,38532.0,0.07920859]
[1643727572275,0.41154477,38548.0,38534.0,1.2]
[1643727572474,0.00585842,38560.0,38537.0,0.10741277]
[1643727572672,0.00585842,38560.0,38537.0,0.064874]
[1643727572870,0.14357883,38549.0,38538.0,0.350011]
[1643727573275,0.21691054,38547.0,38542.0,0.08892583]
[1643727573470,0.21691054,38547.0,38537.0,0.29211704]
[1643727573674,0.21691054,38547.0,38537.0,0.064874]
[1643727573872,0.00154697,38546.0,38541.0,0.00131466]
[1643727574474,0.10479463,38545.0,38541.0,0.00131466]
[1643727574778,0.10479463,38545.0,38527.0,0.09529419]
[1643727574779,0.05,38542.0,38527.0,0.2278745]
[1643727574973,0.05,38542.0,38519.0,0.2007]
[1643727574974,0.527716,38541.0,38524.0,0.064894]
[1643727575174,0.527716,38541.0,38525.0,0.2278745]
[1643727575175,0.0979,38541.0,38525.0,0.2278745]
[1643727575375,0.05,38541.0,38525.0,0.2278745]
[1643727575576,0.25638505,38538.0,38527.0,0.21299696]
[1643727575822,0.30638505,38538.0,38534.0,0.10491499]
[1643727576017,0.30638505,38538.0,38528.0,0.2278745]
[1643727576218,0.25638505,38538.0,38528.0,0.1]
[1643727576417,0.25638505,38538.0,38527.0,0.129771]
[1643727576917,0.14344875,38535.0,38527.0,0.229461]
[1643727577319,0.29525643,38530.0,38527.0,0.229461]
[1643727577518,0.29525643,38530.0,38527.0,0.09969]
[1643727577718,0.39315643,38530.0,38527.0,0.09969]
[1643727577917,0.0979,38530.0,38528.0,0.350011]
[1643727578323,0.0979,38530.0,38527.0,0.09969]
[1643727578719,0.0979,38530.0,38527.0,0.10099856]
[1643727578918,0.1571296,38529.0,38527.0,0.10099856]
[1643727579320,0.0479,38528.0,38527.0,0.10099856]
[1643727579766,0.0479,38528.0,38527.0,0.09969]
[1643727579969,0.42,38538.0,38527.0,0.87184317]
[1643727579970,0.4679,38538.0,38527.0,0.87184317]
[1643727580166,0.12124364,38534.0,38527.0,0.87184317]
[1643727580366,0.12124364,38534.0,38528.0,0.1]
[1643727580565,0.42,38538.0,38529.0,0.154894]
[1643727580971,0.42,38538.0,38533.0,0.09547934]
[1643727581169,0.42,38538.0,38535.0,0.064878]
[1643727581367,0.42,38538.0,38536.0,0.3709127]
[1643727581569,0.0180921,38539.0,38537.0,0.22219954]
[1643727581766,0.13867244,38543.0,38537.0,0.22219954]
[1643727581767,0.13867244,38543.0,38538.0,0.349903]
[1643727581966,0.13867244,38543.0,38537.0,0.22219954]
[1643727582166,0.13867244,38543.0,38539.0,0.08672543]
[1643727582369,0.13867244,38543.0,38539.0,0.00130817]
[1643727582868,0.18867244,38543.0,38539.0,0.00130817]
[1643727583069,0.350011,38542.0,38539.0,0.00130817]
[1643727583316,0.0479,38541.0,38517.0,0.1]
[1643727583519,0.0479,38541.0,38524.0,0.0992114]
[1643727583520,0.35466831,38533.0,38524.0,0.0992114]
[1643727583713,0.0479,38533.0,38524.0,0.0992114]
[1643727583914,0.0479,38533.0,38525.0,0.350011]
[1643727584319,0.24468147,38543.0,38527.0,0.10495044]
[1643727584320,0.0979,38543.0,38527.0,0.10495044]
[1643727584516,0.0979,38543.0,38526.0,0.04723152]
[1643727584517,0.0479,38543.0,38532.0,0.064878]
[1643727584719,0.11783289,38539.0,38532.0,0.064878]
[1643727584918,0.11783289,38539.0,38534.0,0.09881422]
[1643727585117,0.11783289,38539.0,38532.0,0.064878]
[1643727585721,0.11783289,38539.0,38525.0,0.05]
[1643727585722,0.22370182,38535.0,38531.0,0.129755]
[1643727585922,0.22370182,38535.0,38534.0,0.00130834]
[1643727586125,0.35235078,38535.0,38534.0,0.00130834]
[1643727586424,0.35235078,38535.0,38534.0,8.34e-06]
[1643727586425,0.71236482,38535.0,38534.0,8.34e-06]
[1643727586972,0.71236482,38535.0,38522.0,0.0997]
[1643727586973,0.06491225,38532.0,38522.0,0.0997]
[1643727587161,0.0479,38531.0,38522.0,0.0997]
[1643727587361,0.53328325,38524.0,38522.0,0.0997]
[1643727587564,0.0479,38523.0,38522.0,0.0997]
[1643727588963,0.01962676,38528.0,38522.0,0.799711]
[1643727589163,0.0479,38533.0,38522.0,0.799711]
[1643727589363,0.0479,38533.0,38524.0,0.09460191]
[1643727589562,0.0479,38533.0,38525.0,0.2889055]
[1643727589763,0.13396988,38531.0,38525.0,0.2889055]
[1643727589964,0.0479,38533.0,38525.0,0.2889055]
[1643727590166,0.00519991,38538.0,38526.0,0.350011]
[1643727590365,0.06488833,38542.0,38527.0,0.1]
[1643727590564,0.06993653,38542.0,38527.0,0.1]
[1643727590813,0.00154365,38540.0,38530.0,0.00130196]
[1643727591015,0.23455445,38535.0,38530.0,0.00130196]
[1643727591422,0.397911,38534.0,38530.0,0.00130196]
[1643727591617,0.2278745,38533.0,38530.0,0.00130196]
[1643727591814,0.397911,38532.0,38512.0,0.22018821]
[1643727592014,0.0979,38532.0,38530.0,0.00130196]
[1643727592213,0.400011,38531.0,38530.0,0.00130196]
[1643727592413,0.23914265,38529.0,38520.0,0.0848779]
[1643727592614,0.0479,38528.0,38520.0,0.0848779]
[1643727592814,0.0479,38528.0,38518.0,0.22617559]
[1643727593016,0.0479,38528.0,38519.0,0.350011]
[1643727593214,0.0479,38528.0,38518.0,0.22617559]
[1643727593413,0.0479,38528.0,38519.0,0.350011]
[1643727593614,0.15165784,38526.0,38519.0,0.350011]
[1643727593815,0.24955784,38526.0,38521.0,0.08832006]
[1643727594019,0.24955784,38526.0,38518.0,0.22617559]
[1643727594215,0.24955784,38526.0,38514.0,0.064908]
[1643727594469,0.24955784,38526.0,38515.0,0.350011]
[1643727594665,0.24955784,38526.0,38516.0,0.08972]
[1643727594864,0.24955784,38526.0,38517.0,0.155065]
[1643727595064,0.24955784,38526.0,38520.0,0.09904077]
[1643727595265,0.24955784,38526.0,38516.0,0.08972]
[1643727595466,0.24955784,38526.0,38521.0,0.00129575]
[1643727595467,0.06491579,38525.0,38521.0,0.00129575]
[1643727595767,0.0479,38524.0,38521.0,0.00129575]
[1643727596366,0.2105663,38523.0,38521.0,0.00129575]
[1643727596569,0.0479,38522.0,38512.0,0.31834481]
[1643727596765,0.0479,38522.0,38521.0,0.00064789]
[1643727596966,0.18301998,38522.0,38521.0,0.00064789]
[1643727597766,0.18301998,38522.0,38512.0,0.09765747]
[1643727597767,0.0979,38522.0,38512.0,0.09765747]
[1643727597967,0.0979,38522.0,38520.0,0.0012958]
[1643727598210,0.0479,38522.0,38520.0,0.0012958]
[1643727598410,0.0979,38522.0,38520.0,0.0012958]
[1643727598611,0.0479,38522.0,38520.0,0.0012958]
[1643727598812,0.19244081,38522.0,38520.0,0.0012958]
[1643727599012,0.0479,38522.0,38519.0,0.09746993]
[1643727599216,0.0479,38522.0,38520.0,0.350011]
[1643727599513,0.0479,38522.0,38519.0,0.00129582]
[1643727599712,0.0479,38522.0,38520.0,0.350011]
[1643727600115,0.04303,38522.0,38520.0,0.350011]
[1643727600315,0.04303,38522.0,38519.0,0.00129582]
[1643727600517,0.129831,38531.0,38519.0,0.00129582]
[1643727600518,0.06489732,38533.0,38519.0,0.00129582]
[1643727600720,0.00019415,38539.0,38530.0,0.09098558]
[1643727600721,0.00552484,38538.0,38530.0,0.09098558]
[1643727601018,0.00019415,38539.0,38530.0,0.09098558]
[1643727601215,0.0061553,38542.0,38534.0,1.2]
[1643727601416,0.11466678,38544.0,38534.0,1.354971]
[1643727601616,0.00153934,38535.0,38534.0,1.2]
[1643727601820,0.00153934,38535.0,38534.0,0.154964]
[1643727602068,0.00153934,38535.0,38529.0,0.154992]
[1643727602268,0.00153934,38535.0,38528.0,0.00129552]
[1643727602472,0.42,38548.0,38518.0,0.46973558]
[1643727602473,0.22287631,38529.0,38518.0,0.46973558]
[1643727602668,0.22287631,38529.0,38519.0,0.155038]
[1643727602669,0.06491363,38526.0,38519.0,0.155038]
[1643727602871,0.09915038,38520.0,38508.0,0.09974]
[1643727603070,0.12343561,38509.0,38508.0,0.09974]
[1643727603276,0.12343561,38509.0,38503.0,0.0011]
[1643727603277,1.2,38508.0,38503.0,0.0011]
[1643727603470,0.6256175,38507.0,38503.0,0.0011]
[1643727603674,1.2059869,38506.0,38502.0,0.0001]
[1643727603869,1.2059869,38506.0,38500.0,0.0011]
[1643727603870,1.05982362,38505.0,38504.0,0.00064817]
[1643727604070,0.96185712,38505.0,38504.0,0.00064817]
[1643727604270,1.01185712,38505.0,38504.0,0.00064817]
[1643727604472,0.58417501,38505.0,38504.0,0.00064817]
[1643727604675,0.527651,38505.0,38504.0,0.00064817]
[1643727604873,1.2,38504.0,38503.0,4.817e-05]
[1643727605071,1.597743,38504.0,38503.0,0.00064819]
[1643727605273,0.05,38501.0,38472.0,0.823467]
[1643727605470,0.05,38501.0,38480.0,0.80847507]
[1643727605471,0.2757745,38500.0,38480.0,0.80847507]
[1643727605738,0.05,38496.0,38481.0,0.54860507]
[1643727605940,0.14395053,38488.0,38481.0,0.54860507]
[1643727606339,0.0005439,38484.0,38480.0,0.34987424]
[1643727606538,0.0479,38487.0,38482.0,1.2]
[1643727606739,0.0479,38487.0,38483.0,0.19102179]
[1643727606939,0.0479,38487.0,38481.0,0.04099429]
[1643727607143,0.25061769,38485.0,38482.0,0.04069481]
[1643727607342,0.25061769,38485.0,38475.0,0.00679915]
[1643727607343,0.0479,38484.0,38476.0,0.0009]
[1643727607541,0.0479,38484.0,38473.0,0.59757859]
[1643727607542,1.15,38483.0,38473.0,0.03376867]
[1643727607741,0.397743,38482.0,38472.0,0.04638859]
[1643727607947,0.397743,38482.0,38468.0,0.066084]
[1643727607948,0.5992,38476.0,38462.0,0.0011]
[1643727608142,1.48516774,38481.0,38463.0,0.0011]
[1643727608143,0.63291074,38475.0,38463.0,0.0011]
[1643727608340,0.5992,38471.0,38463.0,0.0011]
[1643727608544,0.065013,38481.0,38463.0,0.0011]
[1643727608545,0.23516774,38481.0,38464.0,0.155363]
[1643727608739,0.0479,38480.0,38463.0,0.0011]
[1643727608940,0.6471,38480.0,38463.0,0.0011]
[1643727609339,0.6471,38480.0,38464.0,0.27459273]
[1643727609340,0.15285713,38472.0,38464.0,0.27459273]
[1643727609585,0.0479,38471.0,38466.0,0.064993]
[1643727609790,0.30571426,38472.0,38467.0,0.25641051]
[1643727609986,0.35361426,38472.0,38469.0,0.00547906]
[1643727610185,0.0008959,38474.0,38471.0,0.09690163]
[1643727610388,0.7639,38501.0,38471.0,0.09690163]
[1643727610389,0.60014004,38503.0,38473.0,0.1]
[1643727610590,0.60014004,38503.0,38486.0,0.26383301]
[1643727610591,0.28270648,38498.0,38486.0,0.26383301]
[1643727610783,0.28270648,38498.0,38487.0,0.129898]
[1643727610992,0.28270648,38498.0,38486.0,0.05]
[1643727610993,0.349843,38495.0,38486.0,0.05]
[1643727611185,0.349843,38495.0,38472.0,0.24202068]
[1643727611186,0.05,38493.0,38472.0,0.24202068]
[1643727611483,0.05,38493.0,38470.0,0.05]
[1643727611484,0.33306774,38492.0,38470.0,0.05]
[1643727611686,0.33306774,38492.0,38464.0,0.259886]
[1643727611687,1.364,38489.0,38464.0,0.259886]
[1643727611891,0.05,38476.0,38466.0,0.065008]
[1643727612086,0.05,38476.0,38461.0,0.01]
[1643727612087,1.2,38473.0,38451.0,0.01]
[1643727612287,0.05,38465.0,38451.0,0.01]
[1643727612488,0.63291074,38464.0,38451.0,0.01]
[1643727612787,0.1,38463.0,38451.0,0.01]
[1643727612985,0.23516774,38467.0,38454.0,0.065029]
[1643727612986,0.24940917,38460.0,38454.0,0.065029]
[1643727613215,0.80524961,38459.0,38454.0,0.065029]
[1643727613413,0.80524961,38459.0,38451.0,0.01]
[1643727613414,1.04041735,38459.0,38451.0,0.01]
[1643727613612,1.04041735,38459.0,38455.0,0.00127981]
[1643727613613,0.09268932,38457.0,38455.0,0.00127981]
[1643727613813,0.349843,38456.0,38455.0,0.00127981]
[1643727614012,0.393543,38456.0,38455.0,0.00127981]
[1643727614215,0.393543,38456.0,38437.0,0.0031]
[1643727614216,1.2,38453.0,38437.0,0.0031]
[1643727614418,0.05,38451.0,38437.0,0.0031]
[1643727614616,0.1,38448.0,38431.0,0.0122]
[1643727614813,0.62871074,38447.0,38431.0,0.0122]
[1643727615018,0.05,38443.0,38429.0,0.0011]
[1643727615215,0.05,38444.0,38429.0,0.0011]
[1643727615216,0.25887107,38430.0,38429.0,0.0011]
[1643727615416,0.60871407,38430.0,38421.0,0.01]
[1643727615617,0.60871407,38430.0,38422.0,0.36016]
[1643727615618,0.62871074,38429.0,38422.0,0.36016]
[1643727615814,0.493543,38429.0,38422.0,0.36016]
[1643727616013,0.393543,38429.0,38422.0,0.36016]
[1643727616412,0.0437,38429.0,38422.0,0.36016]
[1643727616814,0.58501074,38428.0,38422.0,0.36016]
[1643727617073,0.58501074,38428.0,38411.0,0.01]
[1643727617074,0.05,38422.0,38411.0,0.01]
[1643727617274,0.1,38425.0,38411.0,0.01]
[1643727617275,0.23516774,38421.0,38411.0,0.01]
[1643727617475,0.18137067,38420.0,38408.0,3.73663515]
[1643727617675,0.28516774,38424.0,38408.0,3.73663515]
[1643727617676,0.0437,38419.0,38408.0,3.73663515]
[1643727617869,0.1,38425.0,38408.0,3.73663515]
[1643727617870,0.0437,38418.0,38408.0,3.73663515]
[1643727618272,0.22418102,38416.0,38408.0,3.73663515]
[1643727618471,0.0908942,38411.0,38408.0,3.73223515]
[1643727618672,0.0908942,38411.0,38391.0,0.01]
[1643727618673,1.52886774,38410.0,38391.0,0.01]
[1643727618875,1.52886774,38410.0,38391.0,0.00388]
[1643727618876,0.12097676,38398.0,38391.0,0.00388]
[1643727619072,0.58501074,38397.0,38383.0,0.0197915]
[1643727619275,1.2,38393.0,38381.0,0.01]
[1643727619476,0.08977347,38382.0,38381.0,0.01]
[1643727619674,0.47089604,38382.0,38381.0,0.01]
[1643727619874,0.36083649,38382.0,38381.0,0.01]
[1643727620081,0.46083649,38382.0,38381.0,0.01]
[1643727620279,1.32872068,38382.0,38371.0,0.01]
[1643727620474,0.18827,38381.0,38371.0,0.01]
[1643727620719,0.65,38371.0,38369.0,0.00147588]
[1643727620916,0.51391,38381.0,38369.0,0.00147588]
[1643727620917,0.393751,38370.0,38369.0,0.00147588]
[1643727621115,1.593651,38370.0,38369.0,0.00147588]
[1643727621516,1.1999,38370.0,38369.0,0.00147588]
[1643727621717,0.0437,38383.0,38377.0,0.09838337]
[1643727621920,0.0437,38383.0,38371.0,0.23516774]
[1643727621921,0.0426,38383.0,38371.0,0.23516774]
[1643727622117,0.0406,38383.0,38371.0,0.23516774]
[1643727622316,0.0406,38383.0,38372.0,0.350051]
[1643727622518,0.0406,38383.0,38374.0,0.05]
[1643727622719,0.0406,38383.0,38374.0,0.1]
[1643727622923,0.0406,38383.0,38375.0,0.45329249]
[1643727623118,0.0406,38383.0,38377.0,0.00123775]
[1643727623322,0.28157379,38378.0,38377.0,0.00123775]
[1643727623619,0.393751,38378.0,38377.0,0.00123775]
[1643727624020,0.0437,38378.0,38377.0,0.00123775]
[1643727624222,0.0437,38390.0,38378.0,1.290642]
[1643727624476,0.0437,38390.0,38384.0,0.09952089]
[1643727624875,0.0437,38390.0,38385.0,0.350051]
[1643727625076,0.0437,38390.0,38378.0,0.33275941]
[1643727625273,0.23516774,38400.0,38378.0,0.33275941]
[1643727625479,0.12715565,38401.0,38378.0,0.33275941]
[1643727625480,0.12715565,38401.0,38379.0,0.32446153]
[1643727625676,0.0437,38401.0,38383.0,0.10404849]
[1643727625874,1.34068645,38406.0,38393.0,0.0876534]
[1643727626078,1.34068645,38406.0,38394.0,0.29518955]
[1643727626274,0.2464,38422.0,38394.0,0.34518955]
[1643727626475,0.51,38419.0,38396.0,0.09546079]
[1643727626676,0.51,38419.0,38400.0,0.12397186]
[1643727626677,0.22375159,38416.0,38400.0,0.12397186]
[1643727626874,0.22375159,38416.0,38405.0,0.00123685]
[1643727627278,0.350051,38415.0,38405.0,0.00123685]
[1643727627779,0.350051,38415.0,38402.0,0.34786292]
[1643727627780,0.01,38429.0,38410.0,1.2]
[1643727627983,0.01,38429.0,38411.0,0.25379462]
[1643727628225,0.01,38429.0,38413.0,0.05]
[1643727628425,0.01,38429.0,38411.0,0.3478158]
[1643727628426,0.37056834,38417.0,38411.0,0.2478158]
[1643727628627,0.37056834,38417.0,38410.0,0.42]
[1643727628628,0.12348133,38416.0,38410.0,0.42]
[1643727628826,0.37056834,38417.0,38410.0,0.42]
[1643727628827,0.349867,38415.0,38410.0,0.42]
[1643727629024,0.28189254,38420.0,38410.0,0.550188]
[1643727629224,0.01,38429.0,38410.0,0.550188]
[1643727629225,0.00152244,38425.0,38412.0,0.10274174]
[1643727629425,1.2,38424.0,38410.0,0.52757464]
[1643727629627,1.2,38424.0,38401.0,0.19343129]
[1643727629628,0.05,38418.0,38401.0,0.19343129]
[1643727629828,0.05,38407.0,38399.0,7.316e-05]
[1643727630130,0.05,38407.0,38385.0,0.09259867]
[1643727630131,0.30798352,38391.0,38386.0,0.10231785]
[1643727630328,0.2478158,38405.0,38387.0,0.10329986]
[1643727630530,0.349867,38404.0,38389.0,0.09219597]
[1643727630733,0.3478158,38403.0,38373.0,0.130269]
[1643727630929,0.3478158,38403.0,38371.0,0.01]
[1643727630930,0.15621443,38385.0,38371.0,0.01]
[1643727631126,0.4415158,38403.0,38371.0,0.01]
[1643727631127,0.0437,38398.0,38381.0,0.065156]
[1643727631330,0.349867,38397.0,38382.0,0.3443926]
[1643727631530,0.0437,38398.0,38383.0,0.09095027]
[1643727631728,0.36110945,38393.0,38383.0,0.09095027]
[1643727632167,0.349867,38392.0,38381.0,0.065156]
[1643727632376,0.01983593,38405.0,38386.0,0.130271]
[1643727632567,0.28433327,38397.0,38387.0,0.10098184]
[1643727632966,0.349867,38396.0,38386.0,0.130271]
[1643727633171,0.01983593,38405.0,38392.0,0.09625497]
[1643727633373,0.01983593,38405.0,38399.0,0.15412254]
[1643727633569,0.01983593,38405.0,38400.0,0.5976828]
[1643727633769,0.01957527,38405.0,38401.0,0.09793624]
[1643727633972,0.5,38428.0,38405.0,0.25942162]
[1643727634167,0.4805,38430.0,38406.0,0.2478158]
[1643727634168,0.00151518,38407.0,38406.0,0.2478158]
[1643727634367,0.00151518,38407.0,38405.0,0.05]
[1643727634568,0.349867,38406.0,38405.0,0.15467088]
[1643727634767,0.00151518,38407.0,38404.0,0.01957527]
[1643727634968,0.09949704,38427.0,38404.0,0.01957527]
[1643727634969,0.09949704,38427.0,38405.0,0.09082594]